[Event "*** Titled Tuesday Blitz AM"]
[Site "Chess.com"]
[Date "2020.01.07"]
[Round "9"]
[White "MFBerna"]
[Black "vova-79"]
[Result "1-0"]
[WhiteElo "2481"]
[BlackElo "2590"]
[TimeControl "180+2"]
[EndTime "11:07:16 PST"]
[Termination "MFBerna won on time"]

1. d4 {[%clk 0:03:01.9]} 1... d5 {[%clk 0:03:00.3]} 2. Nf3 {[%clk 0:03:01.3]}
2... Nf6 {[%clk 0:03:00.7]} 3. g3 {[%clk 0:03:01.3]} 3... c6 {[%clk 0:03:00.7]}
4. Bg2 {[%clk 0:03:01.2]} 4... Bg4 {[%clk 0:03:00.8]} 5. Ne5 {[%clk 0:03:01.6]}
5... Bh5 {[%clk 0:03:00.7]} 6. O-O {[%clk 0:03:02.6]} 6... Nbd7 {[%clk
0:03:00.8]} 7. Bf4 {[%clk 0:02:57.5]} 7... e6 {[%clk 0:03:00.2]} 8. Nd2 {[%clk
0:02:53.2]} 8... Nxe5 {[%clk 0:03:00.7]} 9. dxe5 {[%clk 0:02:53.2]} 9... Nd7
{[%clk 0:03:01.1]} 10. Nf3 {[%clk 0:02:48.6]} 10... Bxf3 {[%clk 0:02:49.2]} 11.
exf3 {[%clk 0:02:45.1]} 11... g6 {[%clk 0:02:42.3]} 12. Re1 {[%clk 0:02:33.8]}
12... Bg7 {[%clk 0:02:42.3]} 13. h4 {[%clk 0:02:30.8]} 13... O-O {[%clk
0:02:40.3]} 14. Qe2 {[%clk 0:02:15.4]} 14... Qb6 {[%clk 0:02:33.5]} 15. c3
{[%clk 0:02:12.4]} 15... a5 {[%clk 0:02:33.3]} 16. h5 {[%clk 0:02:06.8]} 16...
a4 {[%clk 0:02:28.9]} 17. hxg6 {[%clk 0:02:07.8]} 17... hxg6 {[%clk 0:02:29.3]}
18. Bh3 {[%clk 0:02:01.9]} 18... Qa6 {[%clk 0:02:28.5]} 19. Qc2 {[%clk
0:01:58.9]} 19... Qb6 {[%clk 0:02:18.1]} 20. Kg2 {[%clk 0:01:57.5]} 20... c5
{[%clk 0:02:09.3]} 21. Re2 {[%clk 0:01:50.4]} 21... d4 {[%clk 0:02:06.1]} 22.
Rh1 {[%clk 0:01:46.5]} 22... Rfd8 {[%clk 0:02:01]} 23. Qe4 {[%clk 0:01:37.2]}
23... Qc6 {[%clk 0:01:47.9]} 24. cxd4 {[%clk 0:01:35.1]} 24... cxd4 {[%clk
0:01:47.2]} 25. Rc1 {[%clk 0:01:13.7]} 25... Qxe4 {[%clk 0:01:31.7]} 26. Rxe4
{[%clk 0:01:15.6]} 26... Nb6 {[%clk 0:01:22.8]} 27. Kg1 {[%clk 0:01:02.8]} 27...
Ra5 {[%clk 0:01:17.6]} 28. Bf1 {[%clk 0:01:00.6]} 28... Bf8 {[%clk 0:00:48.7]}
29. Bd3 {[%clk 0:00:48.8]} 29... Rc5 {[%clk 0:00:47.3]} 30. Rd1 {[%clk
0:00:41.8]} 30... Be7 {[%clk 0:00:34]} 31. Bd2 {[%clk 0:00:38.8]} 31... Rc6
{[%clk 0:00:15]} 32. Bb5 {[%clk 0:00:37.5]} 32... Rc5 {[%clk 0:00:16.1]} 33. Bd3
{[%clk 0:00:36.9]} 33... Rc6 {[%clk 0:00:17.1]} 34. Kg2 {[%clk 0:00:37.1]} 34...
Rd5 {[%clk 0:00:16.5]} 35. Ree1 {[%clk 0:00:35.9]} 35... Nc4 {[%clk 0:00:17.3]}
36. Be4 {[%clk 0:00:31.7]} 36... Nxd2 {[%clk 0:00:03.7]} 37. Bxd5 {[%clk
0:00:32.4]} 37... exd5 {[%clk 0:00:04.3]} 38. Rxd2 {[%clk 0:00:30.4]} 38... Bb4
{[%clk 0:00:05.1]} 39. Red1 {[%clk 0:00:30.6]} 39... Bxd2 {[%clk 0:00:05.5]} 40.
Rxd2 {[%clk 0:00:32.5]} 40... d3 {[%clk 0:00:04.7]} 41. Rxd3 {[%clk 0:00:31.4]}
41... Rc2 {[%clk 0:00:05.6]} 42. Rxd5 {[%clk 0:00:23.7]} 42... Rxb2 {[%clk
0:00:06.4]} 43. a3 {[%clk 0:00:23.4]} 43... Rb3 {[%clk 0:00:07.1]} 44. Rd7
{[%clk 0:00:21.4]} 44... b5 {[%clk 0:00:07.2]} 45. Rb7 {[%clk 0:00:22.5]} 45...
Rxa3 {[%clk 0:00:05.7]} 46. Rxb5 {[%clk 0:00:23.1]} 46... Ra1 {[%clk 0:00:03]}
47. Ra5 {[%clk 0:00:23.2]} 47... a3 {[%clk 0:00:04.2]} 48. f4 {[%clk 0:00:24.4]}
48... Kf8 {[%clk 0:00:04.4]} 49. Ra7 {[%clk 0:00:25.4]} 49... a2 {[%clk
0:00:04.5]} 50. g4 {[%clk 0:00:26.6]} 50... Ke8 {[%clk 0:00:04.5]} 51. Kf3
{[%clk 0:00:26.1]} 51... Kf8 {[%clk 0:00:05]} 52. f5 {[%clk 0:00:27.3]} 52...
gxf5 {[%clk 0:00:05.4]} 53. gxf5 {[%clk 0:00:29.2]} 53... Re1 {[%clk 0:00:05.4]}
54. Rxa2 {[%clk 0:00:23.6]} 54... Rxe5 {[%clk 0:00:06]} 55. Kf4 {[%clk
0:00:23.6]} 55... Rb5 {[%clk 0:00:05.5]} 56. f6 {[%clk 0:00:19.2]} 56... Kg8
{[%clk 0:00:04.8]} 57. Ra7 {[%clk 0:00:17.4]} 57... Rb4+ {[%clk 0:00:04.4]} 58.
Kg5 {[%clk 0:00:17.2]} 1-0

[Event "*** Titled Tuesday Blitz AM"]
[Site "Chess.com"]
[Date "2020.01.07"]
[Round "9"]
[White "AminMolaei"]
[Black "StephenDedalus83"]
[Result "0-1"]
[WhiteElo "2572"]
[BlackElo "2707"]
[TimeControl "180+2"]
[EndTime "11:07:43 PST"]
[Termination "StephenDedalus83 won by resignation"]

1. d4 {[%clk 0:03:01.9]} 1... g6 {[%clk 0:03:00.9]} 2. Nf3 {[%clk 0:03:02]} 2...
Bg7 {[%clk 0:03:02]} 3. g3 {[%clk 0:03:03]} 3... d6 {[%clk 0:03:01.2]} 4. Bg2
{[%clk 0:03:04.6]} 4... Nd7 {[%clk 0:02:58.9]} 5. O-O {[%clk 0:03:06.5]} 5... e5
{[%clk 0:02:57]} 6. e4 {[%clk 0:03:07.1]} 6... Ngf6 {[%clk 0:02:55.6]} 7. dxe5
{[%clk 0:03:05.3]} 7... dxe5 {[%clk 0:02:55.7]} 8. Qe2 {[%clk 0:03:05]} 8... O-O
{[%clk 0:02:55.6]} 9. b3 {[%clk 0:03:05.6]} 9... Re8 {[%clk 0:02:54.1]} 10. Ba3
{[%clk 0:03:05.8]} 10... Bf8 {[%clk 0:02:54.3]} 11. Rd1 {[%clk 0:03:04.6]} 11...
Bxa3 {[%clk 0:02:52.7]} 12. Nxa3 {[%clk 0:03:06.5]} 12... Qe7 {[%clk 0:02:53.7]}
13. Nc4 {[%clk 0:03:06.6]} 13... b6 {[%clk 0:02:51.2]} 14. a4 {[%clk 0:03:00.8]}
14... a5 {[%clk 0:02:43.5]} 15. Nfd2 {[%clk 0:02:59.6]} 15... Bb7 {[%clk
0:02:43.9]} 16. f3 {[%clk 0:02:59.1]} 16... Nc5 {[%clk 0:02:43.9]} 17. Nf1
{[%clk 0:02:59.1]} 17... Nfd7 {[%clk 0:02:41.9]} 18. Nfe3 {[%clk 0:02:59.5]}
18... Nf8 {[%clk 0:02:42.2]} 19. Rd2 {[%clk 0:02:57.8]} 19... Rad8 {[%clk
0:02:41.1]} 20. Rad1 {[%clk 0:02:58.2]} 20... Rxd2 {[%clk 0:02:39.3]} 21. Rxd2
{[%clk 0:02:57.4]} 21... f6 {[%clk 0:02:39.4]} 22. Nd5 {[%clk 0:02:52.4]} 22...
Qf7 {[%clk 0:02:40]} 23. Qd1 {[%clk 0:02:48.7]} 23... Nfe6 {[%clk 0:02:40.2]}
24. c3 {[%clk 0:02:47.9]} 24... Rd8 {[%clk 0:02:29.5]} 25. b4 {[%clk 0:02:44.8]}
25... axb4 {[%clk 0:02:21.4]} 26. cxb4 {[%clk 0:02:45]} 26... Na6 {[%clk
0:02:22.2]} 27. b5 {[%clk 0:02:23.5]} 27... Nac5 {[%clk 0:02:20.7]} 28. a5
{[%clk 0:02:24.8]} 28... bxa5 {[%clk 0:02:14]} 29. Nxa5 {[%clk 0:02:26.7]} 29...
Ba8 {[%clk 0:02:13.8]} 30. Nb3 {[%clk 0:02:08.6]} 30... Nxb3 {[%clk 0:02:11.5]}
31. Qxb3 {[%clk 0:02:10.5]} 31... Kg7 {[%clk 0:02:09.4]} 32. b6 {[%clk
0:01:44.6]} 32... c6 {[%clk 0:01:58.2]} 33. Ra2 {[%clk 0:01:38.1]} 33... cxd5
{[%clk 0:01:57.8]} 34. Ra7 {[%clk 0:01:37.7]} 34... Bb7 {[%clk 0:01:57.6]} 35.
exd5 {[%clk 0:01:25.1]} 35... Nd4 {[%clk 0:01:58]} 36. Qc4 {[%clk 0:01:20.2]}
36... Rd7 {[%clk 0:01:55.9]} 37. f4 {[%clk 0:01:18.4]} 37... Nf5 {[%clk
0:01:45.3]} 38. fxe5 {[%clk 0:01:00.4]} 38... fxe5 {[%clk 0:01:47.2]} 39. Qc3
{[%clk 0:01:00.5]} 39... Qf6 {[%clk 0:01:47.2]} 40. Qc6 {[%clk 0:00:19.3]} 40...
Bxc6 {[%clk 0:01:27.7]} 41. dxc6 {[%clk 0:00:20.3]} 41... Rxa7 {[%clk
0:01:28.3]} 42. bxa7 {[%clk 0:00:22.2]} 42... Qd8 {[%clk 0:01:26.2]} 43. c7
{[%clk 0:00:23.2]} 43... Qd4+ {[%clk 0:01:20.6]} 44. Kf1 {[%clk 0:00:24]} 44...
Ne3+ {[%clk 0:01:03.8]} 45. Ke2 {[%clk 0:00:24.5]} 45... Qxa7 {[%clk 0:01:04.4]}
46. c8=Q {[%clk 0:00:23]} 46... Nxg2 {[%clk 0:01:05.2]} 47. Kf3 {[%clk
0:00:20.4]} 47... Ne3 {[%clk 0:01:03.6]} 48. Qc3 {[%clk 0:00:17.3]} 48... Nf5
{[%clk 0:00:50]} 49. Qxe5+ {[%clk 0:00:17.5]} 49... Kf7 {[%clk 0:00:47.4]} 50.
Qd5+ {[%clk 0:00:17.7]} 50... Kf6 {[%clk 0:00:46.7]} 51. Qc6+ {[%clk 0:00:17.2]}
51... Kg7 {[%clk 0:00:46.5]} 52. Qc3+ {[%clk 0:00:13]} 52... Qd4 {[%clk
0:00:45.3]} 53. Qc7+ {[%clk 0:00:14.3]} 53... Kh6 {[%clk 0:00:44]} 54. Qc1+
{[%clk 0:00:14.9]} 54... g5 {[%clk 0:00:44.5]} 55. Qc6+ {[%clk 0:00:06.1]} 55...
Qd6 {[%clk 0:00:43.4]} 56. Qe4 {[%clk 0:00:03.8]} 56... Qf6 {[%clk 0:00:35.8]}
57. Kg4 {[%clk 0:00:03.8]} 57... Ng7 {[%clk 0:00:36.3]} 58. h4 {[%clk
0:00:04.6]} 58... Qe6+ {[%clk 0:00:36.6]} 59. Qxe6+ {[%clk 0:00:05.2]} 59...
Nxe6 {[%clk 0:00:37.5]} 60. hxg5+ {[%clk 0:00:06.9]} 60... Nxg5 {[%clk
0:00:38.3]} 61. Kf5 {[%clk 0:00:08.5]} 61... Nf3 {[%clk 0:00:37.9]} 62. Kg4
{[%clk 0:00:09.6]} 62... Nd4 {[%clk 0:00:38.2]} 63. Kh4 {[%clk 0:00:09.8]} 63...
Kg6 {[%clk 0:00:39.1]} 64. Kg4 {[%clk 0:00:11]} 64... Nf5 {[%clk 0:00:39.2]} 65.
Kf4 {[%clk 0:00:11.9]} 65... h6 {[%clk 0:00:39.7]} 66. Kg4 {[%clk 0:00:12.7]}
66... h5+ {[%clk 0:00:40.2]} 67. Kf4 {[%clk 0:00:11.8]} 67... Nh6 {[%clk
0:00:41.2]} 68. Kf3 {[%clk 0:00:09.2]} 68... Kg5 {[%clk 0:00:42]} 69. Kf2 {[%clk
0:00:10.2]} 69... Kg4 {[%clk 0:00:42.1]} 70. Kg2 {[%clk 0:00:11.9]} 70... Nf5
{[%clk 0:00:43.7]} 0-1

[Event "*** Titled Tuesday Blitz AM"]
[Site "Chess.com"]
[Date "2020.01.07"]
[Round "9"]
[White "nihalsarin"]
[Black "1stSecond"]
[Result "1/2-1/2"]
[WhiteElo "3034"]
[BlackElo "2821"]
[TimeControl "180+2"]
[EndTime "11:09:50 PST"]
[Termination "Game drawn by 50-move rule"]

1. Nf3 {[%clk 0:03:01.3]} 1... d5 {[%clk 0:03:00]} 2. d4 {[%clk 0:03:01.8]} 2...
e6 {[%clk 0:02:57.4]} 3. Bf4 {[%clk 0:03:03.2]} 3... Bd6 {[%clk 0:02:57.8]} 4.
Bg3 {[%clk 0:03:04]} 4... c5 {[%clk 0:02:58.4]} 5. e3 {[%clk 0:03:05.1]} 5...
Nc6 {[%clk 0:02:59.5]} 6. c3 {[%clk 0:02:49.9]} 6... Bxg3 {[%clk 0:03:00.3]} 7.
hxg3 {[%clk 0:02:51.8]} 7... Qd6 {[%clk 0:03:01.7]} 8. Nbd2 {[%clk 0:02:50.3]}
8... Nge7 {[%clk 0:03:00]} 9. Bd3 {[%clk 0:02:50.9]} 9... h6 {[%clk 0:02:56.2]}
10. dxc5 {[%clk 0:02:50.3]} 10... Qxc5 {[%clk 0:02:57.2]} 11. e4 {[%clk
0:02:52.2]} 11... Bd7 {[%clk 0:02:45.9]} 12. Qe2 {[%clk 0:02:49.1]} 12... O-O-O
{[%clk 0:02:46.2]} 13. O-O {[%clk 0:02:48.2]} 13... Kb8 {[%clk 0:02:42.6]} 14.
a4 {[%clk 0:02:44]} 14... Bc8 {[%clk 0:02:43.1]} 15. e5 {[%clk 0:02:40.7]} 15...
g5 {[%clk 0:02:38.1]} 16. a5 {[%clk 0:02:38.8]} 16... g4 {[%clk 0:02:36.9]} 17.
Nb3 {[%clk 0:02:30.6]} 17... gxf3 {[%clk 0:02:36.7]} 18. gxf3 {[%clk 0:02:31.5]}
18... Nd4 {[%clk 0:02:25.1]} 19. Nxc5 {[%clk 0:02:10.5]} 19... Nxe2+ {[%clk
0:02:25.5]} 20. Bxe2 {[%clk 0:02:12.4]} 20... d4 {[%clk 0:02:24.3]} 21. f4
{[%clk 0:02:05.8]} 21... h5 {[%clk 0:02:12.7]} 22. Rfd1 {[%clk 0:01:50.4]} 22...
dxc3 {[%clk 0:02:13.5]} 23. bxc3 {[%clk 0:01:52.3]} 23... h4 {[%clk 0:02:15]}
24. Kg2 {[%clk 0:01:33.1]} 24... hxg3 {[%clk 0:02:13.4]} 25. fxg3 {[%clk
0:01:33.6]} 25... Nd5 {[%clk 0:02:14.9]} 26. Rd3 {[%clk 0:01:13.9]} 26... Rdg8
{[%clk 0:01:59]} 27. Rf3 {[%clk 0:01:13.8]} 27... Rh7 {[%clk 0:01:47.4]} 28. c4
{[%clk 0:01:13.1]} 28... Ne7 {[%clk 0:01:43.1]} 29. Bd3 {[%clk 0:00:53.5]} 29...
Rh6 {[%clk 0:01:29.2]} 30. Be4 {[%clk 0:00:53.6]} 30... Kc7 {[%clk 0:01:28.4]}
31. Rb3 {[%clk 0:00:50.7]} 31... Nf5 {[%clk 0:01:18.5]} 32. Nxb7 {[%clk
0:00:22.5]} 32... Rgh8 {[%clk 0:01:04.7]} 33. Nd6 {[%clk 0:00:06.3]} 33... Rh2+
{[%clk 0:01:05.4]} 34. Kg1 {[%clk 0:00:07.9]} 34... Nd4 {[%clk 0:01:04]} 35.
Nb5+ {[%clk 0:00:07.1]} 35... Nxb5 {[%clk 0:01:04.5]} 36. cxb5 {[%clk 0:00:09]}
36... Bb7 {[%clk 0:01:00.6]} 37. Rc1+ {[%clk 0:00:06.8]} 37... Kb8 {[%clk
0:01:01.4]} 38. Bxb7 {[%clk 0:00:08.4]} 38... Kxb7 {[%clk 0:01:02.7]} 39. Rbc3
{[%clk 0:00:10.1]} 39... Rh1+ {[%clk 0:00:38.8]} 40. Kg2 {[%clk 0:00:11.1]}
40... R8h2+ {[%clk 0:00:40.7]} 41. Kf3 {[%clk 0:00:12.3]} 41... Rxc1 {[%clk
0:00:42.6]} 42. Rxc1 {[%clk 0:00:14.2]} 42... Rb2 {[%clk 0:00:44.1]} 43. Rc5
{[%clk 0:00:12.8]} 43... Ra2 {[%clk 0:00:43.2]} 44. b6 {[%clk 0:00:09.6]} 44...
axb6 {[%clk 0:00:43.5]} 45. axb6 {[%clk 0:00:11.5]} 45... Kxb6 {[%clk
0:00:45.4]} 46. Rc3 {[%clk 0:00:12.7]} 46... Ra8 {[%clk 0:00:42.8]} 47. Kg4
{[%clk 0:00:14.1]} 47... Rg8+ {[%clk 0:00:43.7]} 48. Kh5 {[%clk 0:00:15.6]}
48... Kb7 {[%clk 0:00:44.1]} 49. g4 {[%clk 0:00:16.8]} 49... Kb6 {[%clk
0:00:42.5]} 50. g5 {[%clk 0:00:13.8]} 50... Rh8+ {[%clk 0:00:43.7]} 51. Kg4
{[%clk 0:00:15]} 51... Rh1 {[%clk 0:00:45.6]} 52. Rc8 {[%clk 0:00:09.2]} 52...
Rg1+ {[%clk 0:00:44.6]} 53. Kf3 {[%clk 0:00:09.9]} 53... Rf1+ {[%clk 0:00:46.1]}
54. Kg3 {[%clk 0:00:10.2]} 54... Rg1+ {[%clk 0:00:44.8]} 55. Kf2 {[%clk
0:00:11.1]} 55... Rh1 {[%clk 0:00:46.4]} 56. Rf8 {[%clk 0:00:10.1]} 56... Rh7
{[%clk 0:00:47.7]} 57. g6 {[%clk 0:00:06.5]} 57... fxg6 {[%clk 0:00:49.6]} 58.
Rf6 {[%clk 0:00:08.3]} 58... Re7 {[%clk 0:00:49.2]} 59. Ke3 {[%clk 0:00:05.2]}
59... Kc5 {[%clk 0:00:50.1]} 60. Ke4 {[%clk 0:00:06.6]} 60... Kc6 {[%clk
0:00:44.2]} 61. Rxg6 {[%clk 0:00:06.9]} 61... Kd7 {[%clk 0:00:45.8]} 62. Rg1
{[%clk 0:00:04.1]} 62... Rh7 {[%clk 0:00:46.6]} 63. Rd1+ {[%clk 0:00:04.9]}
63... Ke7 {[%clk 0:00:47.2]} 64. Ra1 {[%clk 0:00:06]} 64... Rh2 {[%clk
0:00:48.2]} 65. Ra7+ {[%clk 0:00:07.6]} 65... Ke8 {[%clk 0:00:49.4]} 66. Ra6
{[%clk 0:00:09.2]} 66... Ke7 {[%clk 0:00:49.4]} 67. Ra7+ {[%clk 0:00:10.8]}
67... Ke8 {[%clk 0:00:50.5]} 68. Kf3 {[%clk 0:00:12.4]} 68... Rh1 {[%clk
0:00:45.8]} 69. Kg4 {[%clk 0:00:13]} 69... Rg1+ {[%clk 0:00:46.9]} 70. Kh5
{[%clk 0:00:13.6]} 70... Kf8 {[%clk 0:00:46.7]} 71. Kh6 {[%clk 0:00:13.7]} 71...
Rg4 {[%clk 0:00:45.2]} 72. Ra4 {[%clk 0:00:14.9]} 72... Kf7 {[%clk 0:00:44.1]}
73. Kh5 {[%clk 0:00:16.5]} 73... Rg1 {[%clk 0:00:45]} 74. Ra7+ {[%clk
0:00:18.4]} 74... Kf8 {[%clk 0:00:46.2]} 75. Rh7 {[%clk 0:00:16.4]} 75... Rg2
{[%clk 0:00:44.3]} 76. Rb7 {[%clk 0:00:16.6]} 76... Rg1 {[%clk 0:00:45.1]} 77.
Kh4 {[%clk 0:00:17.8]} 77... Rg2 {[%clk 0:00:45.3]} 78. Rc7 {[%clk 0:00:19]}
78... Rg1 {[%clk 0:00:46]} 79. Kh3 {[%clk 0:00:20.5]} 79... Ke8 {[%clk
0:00:46.5]} 80. Rb7 {[%clk 0:00:20.8]} 80... Kf8 {[%clk 0:00:47.2]} 81. Kh4
{[%clk 0:00:22.4]} 81... Rg2 {[%clk 0:00:47.2]} 82. Kh5 {[%clk 0:00:23.7]} 82...
Rg1 {[%clk 0:00:46.6]} 83. Rb6 {[%clk 0:00:24.9]} 83... Kf7 {[%clk 0:00:47.1]}
84. Ra6 {[%clk 0:00:26.4]} 84... Rg2 {[%clk 0:00:46.9]} 85. Ra7+ {[%clk
0:00:28]} 85... Kf8 {[%clk 0:00:47.3]} 86. Rc7 {[%clk 0:00:29.3]} 86... Rg1
{[%clk 0:00:48]} 87. Kh6 {[%clk 0:00:29.8]} 87... Rg4 {[%clk 0:00:48]} 88. Rc4
{[%clk 0:00:30.8]} 88... Kf7 {[%clk 0:00:49.3]} 89. Rb4 {[%clk 0:00:32.3]} 89...
Kf8 {[%clk 0:00:48.6]} 90. Kh5 {[%clk 0:00:32]} 90... Rg1 {[%clk 0:00:49.6]} 91.
Rb7 {[%clk 0:00:33.4]} 91... Rg2 {[%clk 0:00:49.9]} 92. Rd7 {[%clk 0:00:34.1]}
92... Rg1 {[%clk 0:00:50.6]} 93. Kh4 {[%clk 0:00:33.7]} 93... Rg2 {[%clk
0:00:51.3]} 94. Kh3 {[%clk 0:00:34.7]} 94... Rg1 {[%clk 0:00:52.5]} 95. Rc7
{[%clk 0:00:35.8]} 95... Ke8 {[%clk 0:00:52.2]} 96. Kh4 {[%clk 0:00:37.1]} 96...
Kf8 {[%clk 0:00:52.9]} 97. Rc3 {[%clk 0:00:36.1]} 97... Kf7 {[%clk 0:00:53.2]}
98. Rg3 {[%clk 0:00:37.2]} 98... Ra1 {[%clk 0:00:50.7]} 99. Kg5 {[%clk
0:00:37.8]} 99... Rh1 {[%clk 0:00:49.7]} 100. Rg2 {[%clk 0:00:36.4]} 100... Ra1
{[%clk 0:00:50.7]} 101. Kg4 {[%clk 0:00:37.3]} 101... Rh1 {[%clk 0:00:51.7]}
102. Rb2 {[%clk 0:00:38.6]} 102... Rg1+ {[%clk 0:00:52.3]} 103. Kf3 {[%clk
0:00:40.1]} 103... Rf1+ {[%clk 0:00:53.4]} 104. Kg3 {[%clk 0:00:41.1]} 104...
Rg1+ {[%clk 0:00:54.3]} 105. Kf2 {[%clk 0:00:42.4]} 105... Ra1 {[%clk
0:00:54.9]} 106. Rb6 {[%clk 0:00:43.6]} 106... Ra3 {[%clk 0:00:54.8]} 107. Rd6
{[%clk 0:00:44.7]} 107... Rh3 {[%clk 0:00:54.4]} 108. Ke2 {[%clk 0:00:45.8]}
108... Ra3 {[%clk 0:00:53.4]} 109. Rd3 {[%clk 0:00:46.8]} 109... Ra2+ {[%clk
0:00:53.1]} 110. Kf3 {[%clk 0:00:48.1]} 110... Ra1 {[%clk 0:00:53.4]} 111. Rd7+
{[%clk 0:00:48.1]} 1/2-1/2